Cogmind - Beta 10.1 @@@ ROGUE MODE // 2020.09.28 @ 05:07:38 Player: spruce Result: Destroyed by as-95599 with Assembled Heavy Rifle Performance ------------- Evolutions (0) 0 Regions Visited (2) 400 Robots Destroyed (16) 80 Value Destroyed (252) 252 Prototype IDs (0) 0 Alien Tech Used (0) 0 Bonus (0) 0 TOTAL SCORE: 732 Bonus ------- None Cogmind --------- Core Integrity 0/250 Matter 119/300 Energy 95/100 System Corruption 0% Temperature Cool (0) Movement Core (50) Location -10/Mines Parts ------- > --- POWER (1) -------- (None) > --- PROPULSION (2) --- (None) > --- UTILITY (2) ------ (None) > --- WEAPON (2) ------- (None) > --- INVENTORY (4) ---- Reinforced Ion Engine Heat Sink Heavy EM Pulse Gun Heavy EM Pulse Gun Peak State ------------ > --- POWER ------------ Reinforced Ion Engine > --- PROPULSION ------- Aluminum Leg Aluminum Leg > --- UTILITY ---------- Large Storage Unit Improved Terrain Scanner > --- WEAPON ----------- Particle Gun Assault Rifle > --- INVENTORY -------- Reinforced Ion Engine Reinforced Ion Engine Heat Sink Large Storage Unit Heavy EM Pulse Gun Heavy EM Pulse Gun Heavy EM Pulse Gun Heavy EM Pulse Gun [Rating: 11] Favorites ----------- Power Reinforced Ion Engine Engine Reinforced Ion Engine Propulsion Aluminum Leg Leg Aluminum Leg Utility Improved Terrain Scanner Device Improved Terrain Scanner Storage Large Storage Unit Weapon Assault Rifle Energy Gun Particle Gun Ballistic Gun Assault Rifle Build | -11 -10 -10 ------- Run | Scr Mat Min Slots Evolved . | . . . Power . | . . . Propulsion . | . . . Utility . | . . . Weapon . | . . . Parts Attached 14 | 6 8 . Power 2 | 1 1 . Engine 2 | 1 1 . Core . | . . . Reactor . | . . . Propulsion 4 | 2 2 . Treads . | . . . Leg 4 | 2 2 . Wheel . | . . . Hover . | . . . Flight . | . . . Utility 4 | 1 3 . Device 1 | . 1 . Storage 3 | 1 2 . Processor . | . . . Hackware . | . . . Protection . | . . . Artifact . | . . . Weapon 4 | 2 2 . Energy Gun 1 | . 1 . Energy Cannon . | . . . Ballistic Gun 3 | 2 1 . Ballistic Cannon . | . . . Launcher . | . . . Special Weapon . | . . . Impact Weapon . | . . . Slashing Weapon . | . . . Piercing Weapon . | . . . Special Melee Weapon . | . . . Unidentified Prototypes . | . . . Parts Lost 9 | . 4 5 Power 1 | . . 1 Propulsion 3 | . 2 1 Utility 1 | . . 1 Weapon 4 | . 2 2 Highest Loss Streak 5 | . 4 5 Average Slot Usage (%) 95 | . 95 97 Engine 13 | . 14 13 Leg 26 | . 26 27 Device 12 | . 12 13 Storage 14 | . 14 14 Energy Gun 5 | . 1 13 Ballistic Gun 20 | . 24 13 Naked Turns 1 | . . 1 Heaviest Build 32 | 11 32 32 Greatest Support 20 | 20 20 20 Greatest Overweight (x) 9 | . 9 5 Average Overweight (x) . | . . 1 Largest Inventory Capacity 10 | 6 10 10 Average Capacity 8 | 4 8 9 Most Carried 9 | 4 9 8 Average Carried 6 | 1 6 7 Final Capacity 10 | 6 10 4 Final Carried 8 | 4 8 4 Class Distribution -------------------- 100% | Mutant Dominant Class ---------------- Mutant | -10/Materials Mutant | -10/Mines Resources | -11 -10 -10 ----------- Run | Scr Mat Min Matter Collected 382 | 232 150 . Remotely . | . . . Salvage Created 408 | . 408 . Parts 40 | . 40 . Haulers Intercepted . | . . . Recyclers Shooed . | . . . Parts Field Recycled . | . . . Retrieved Matter . | . . . Parts Self-Destructed . | . . . Prevented . | . . . Kills | -11 -10 -10 ------- Run | Scr Mat Min Combat Hostiles Destroyed 10 | . 10 . Guns 10 | . 10 . Classes Destroyed 6 | . 6 . Worker 3 | . 3 . Builder 1 | . 1 . Recycler 1 | . 1 . Watcher 1 | . 1 . Swarmer 6 | . 6 . Grunt 4 | . 4 . Best Kill Streak 12 | . 12 . Combat Bots Only 7 | . 7 . Max Kills in Single Turn 2 | . 2 . Gunslinging . | . . . Exploded . | . . . Melee . | . . . Uniques/NPCs Destroyed . | . . . Combat | -11 -10 -10 -------- Run | Scr Mat Min Damage Taken 1154 | . 719 435 Core 257 | . 101 156 Absorbed by Shields . | . . . Core Remaining (%) 100 | 100 . . Volleys Fired 51 | . 51 . Largest 2 | . 2 . Hottest 40 | . 40 . Shots Fired 92 | . 92 . Gun 92 | . 92 . Cannon . | . . . Launcher . | . . . Special . | . . . Kinetic 92 | . 92 . Thermal . | . . . Explosive . | . . . Electromagnetic . | . . . Robot Hit Streak 5 | . 5 . Robot Miss Streak 5 | . 5 . Penetration Max . | . . . Secondary Targets 2 | . 2 . Max Gunslinging Chain 1 | . 1 . Shots Hit Robots 48 | . 48 . Core Hits 22 | . 22 . Critical Hits . | . . . Critical Kills . | . . . Critical Parts Destroyed . | . . . Melee Attacks . | . . . Impact . | . . . Slashing . | . . . Piercing . | . . . Sneak Attacks . | . . . Combat Hostiles . | . . . Follow-up Attacks . | . . . Damage Inflicted 637 | . 637 . Guns 637 | . 637 . Cannons . | . . . Explosions . | . . . Melee . | . . . Ramming . | . . . Kinetic 637 | . 637 . Thermal . | . . . Explosive . | . . . Electromagnetic . | . . . Impact . | . . . Slashing . | . . . Piercing . | . . . Highest Corruption . | . . . Average Corruption . | . . . Corruption Purged . | . . . Overload Shots . | . . . Overflow Damage . | . . . Projectiles . | . . . Explosions . | . . . Melee . | . . . Knockbacks . | . . . Impact . | . . . Kinetic . | . . . Secondary . | . . . Self-Inflicted Damage . | . . . Shots . | . . . Rammed . | . . . Targets Rammed . | . . . Kicked . | . . . Crushed . | . . . Highest Temperature 45 | . 45 6 Average Temperature 12 | . 13 5 Received Heat Transfer 316 | . 276 40 Siege Activations . | . . . Robots Corrupted . | . . . Combat Hostiles . | . . . Parts Fried . | . . . Impact Corruptions . | . . . Robots Melted . | . . . Combat Hostiles . | . . . Parts Melted . | . . . Heat Transferred . | . . . Parts Sabotaged . | . . . Parts Stolen . | . . . Parts Stripped . | . . . Power Chain Reactions . | . . . Missiles Intercepted . | . . . Alert | -11 -10 -10 ------- Run | Scr Mat Min Peak Influence 170 | . 170 81 Initial 66 | . . 66 Average 60 | . 68 64 Maximum Alert Level . | . . . Low Security (%) 100 | 100 100 100 Level 1 . | . . . Level 2 . | . . . Level 3 . | . . . Level 4 . | . . . Level 5 . | . . . High Security . | . . . Max Security . | . . . Squads Dispatched 1 | . 1 . Investigation . | . . . Extermination . | . . . Reinforcement 1 | . 1 . Assault . | . . . Garrison . | . . . Intercept . | . . . Construction Impeded . | . . . Haulers Reinforced . | . . . Stealth | -11 -10 -10 --------- Run | Scr Mat Min Distress Signals 3 | . 3 . Communications Jammed . | . . . Distress Signals . | . . . Times Spotted 43 | . 27 16 Peak Tracking Total 16 | . 5 16 Tactical Retreats 5 | . 5 . Traps | -11 -10 -10 ------- Run | Scr Mat Min Traps Triggered . | . . . Indirectly . | . . . Trap Hack Attempts . | . . . Triggered . | . . . Disarmed . | . . . Reprogrammed . | . . . Reused . | . . . Traps Extracted . | . . . Installed . | . . . Triggered . | . . . Machines | -11 -10 -10 ---------- Run | Scr Mat Min Machines Disabled . | . . . Max in Single Turn . | . . . Machines Sabotaged . | . . . Garrisons Compromised . | . . . Overloaded Fab Kills . | . . . Fab Network Shutdowns . | . . . Hacking | -11 -10 -10 --------- Run | Scr Mat Min Machines Accessed 1 | . 1 . Terminals 1 | . 1 . Fabricators . | . . . Repair Stations . | . . . Recycling Units . | . . . Scanalyzers . | . . . Garrison Access . | . . . Total Hacks 2 | . 2 . Successful 1 | . 1 . Failed 1 | . 1 . Catastrophic . | . . . Database Lockouts . | . . . Manual . | . . . Terminals 2 | . 2 . Fabricators . | . . . Repair Stations . | . . . Recycling Units . | . . . Scanalyzers . | . . . Garrison Access . | . . . Terminal Hacks 1 | . 1 . Branch Access Points 1 | . 1 . Fabricator Hacks . | . . . Repair Station Hacks . | . . . Recycling Unit Hacks . | . . . Scanalyzer . | . . . Garrison Access Hacks . | . . . Unauthorized Hacks . | . . . Terminals . | . . . Fabricators . | . . . Repair Stations . | . . . Recycling Units . | . . . Scanalyzers . | . . . Garrison Access . | . . . Data Cores Recovered . | . . . Used . | . . . Hacking Detections . | . . . Full Trace Events . | . . . Feedback Events . | . . . Feedback Blocked . | . . . Robot Schematics Acquired . | . . . Robots Built . | . . . Matter . | . . . Time . | . . . Total Robot Build Rating . | . . . Part Schematics Acquired . | . . . Parts Built . | . . . Matter . | . . . Time . | . . . Total Part Build Rating . | . . . Parts Repaired . | . . . Time . | . . . Parts Recycled . | . . . Recycled Matter . | . . . Retrieved Matter . | . . . Retrieved Components . | . . . Parts Scanalyzed . | . . . Part Schematics Acquired . | . . . Parts Damaged . | . . . Bothacking | -11 -10 -10 ------------ Run | Scr Mat Min Used RIF Installer . | . . . Robots Hacked . | . . . Non-combat . | . . . Combat . | . . . Robot Hacks Applied . | . . . Relay Couplers Released . | . . . Robots Rewired . | . . . Allies Hacked . | . . . Hacks Repelled . | . . . Allies | -11 -10 -10 -------- Run | Scr Mat Min Total Allies 1 | . . 1 Largest Group 1 | . . 1 Highest-Rated Group 31 | . . 31 Highest-Rated Ally 31 | . . 31 Total Orders . | . . . Ally Attacks 5 | . . 5 Total Damage 40 | . . 40 Kills 1 | . . 1 Allies Corrupted . | . . . Allies Melted . | . . . Intel | -11 -10 -10 ------- Run | Scr Mat Min Robot Analysis Total . | . . . Derelict Logs Recovered 1 | . . 1 Drone Launches . | . . . Drone Recoveries . | . . . Exploration | -11 -10 -10 ------------- Run | Scr Mat Min Turns Passed 994 | 97 587 310 Spaces Moved 551 | 78 271 202 Core 21 | 17 2 2 Treads . | . . . Legs 530 | 61 269 200 Wheels . | . . . Hover . | . . . Flight . | . . . Fastest Speed 50 | 50 120 150 Average Speed 141 | 104 144 151 Slowest Speed 500 | 120 500 300 Overloaded Moves . | . . . Propulsion Burnouts . | . . . Robots Hopped . | . . . Cave-ins Triggered . | . . . Exploration Rate (%) 35 | 4 53 48 Regions Visited 2 Branch Regions 1 Pre-discovered Areas 1 | . . 1 Known Exits Taken 1 | . 1 . Unknown Exits Taken 1 | 1 . . Scrap Searched . | . . . Spaces Dug . | . . . Terrain Destroyed . | . . . Melee . | . . . Projectile . | . . . AOE . | . . . Terrain Rammed . | . . . Walls Destroyed . | . . . Machines Disabled . | . . . Actions | -11 -10 -10 --------- Run | Scr Mat Min Total 674 | 93 376 205 Wait 32 | . 30 2 Move 549 | 77 270 202 Hop . | . . . Pick Up 20 | 10 10 . Fast Attach 4 | . 4 . Attach 8 | 6 2 . Detach . | . . . Swap 2 | . 2 . Drop 8 | . 7 1 Fire 51 | . 51 . Melee . | . . . Ram . | . . . Kick . | . . . Crush . | . . . Escape Stasis . | . . . Rewire . | . . . Trap . | . . . Miscellaneous . | . . . Route ------- -11/Scrapyard -10/Materials (discovered 3 exits: [*Mat] / *Min x2) -10/Mines History --------- Turn | Location | Event 4 | -11/Scrapyard | Discovered new exit (range 15) 98 | -11/Scrapyard | Entered Materials 236 | -10/Materials | Identified exit to Mines 316 | -10/Materials | Build established: Mutant 509 | -10/Materials | Discovered new exit (range 13) 575 | -10/Materials | Destroyed 7 combat bots 594 | -10/Materials | Lost 4 parts (2n2w) 685 | -10/Materials | Entered Mines 791 | -10/Mines | Learned location of Zion (-6) 796 | -10/Mines | Received a Mining Laser from a helpful Derelict 966 | -10/Mines | Assembled infested the area 985 | -10/Mines | Core integrity fell below 50% 992 | -10/Mines | Core integrity fell below 20% 995 | -10/Mines | Destroyed by as-95599 with Assembled Heavy Rifle Last Messages --------------- 00801_ ZD-RSN(g): "Mining lasers are a lot more useful than you might think..." 00917_ K-01 Serf collects debris. 00966_ ALERT: Infestation in the mines, dispatching Demolisher response squad. 00966_ K-01 Serf collects debris. 00975_ as-07726 destroyed. 00977_ U-05 Engineer destroyed. 00977_ ZD-RSN(g) destroyed. 00979_ K-01 Serf collects debris. 00980_ Particle Gun destroyed. 00981_ Aluminum Leg severed. 00983_ as-03426 powers down. 00983_ as-29173 powers down. 00986_ Imp. Terrain Scanner destroyed. 00986_ Assault Rifle destroyed. 00986_ Aluminum Leg destroyed. 00987_ Rnf. Ion Engine destroyed. 00990_ K-01 Serf destroyed. 00994_ Dropped Lrg. Storage Unit. Map ----- +----------------------------------------------------+ | ?????????????????## ##### #??????????? | | ??????#???????????## #???## #### #?????##?#?# | | ??????????????#????# #?#??#######?# #??????????? | | ???????????######### #???#####????# ##?????????? | | ???? #???## ###### #?????###??? | | ???????????############???# ###### ###? | | ??????????????????????????# ##### ### #?? | | ??????????????????????#??## ###??# ## #?? | | ????????????????????????## ##??#?# ## #?? | | ????????????#????????#??# ##?#???# ## #?# | | ????????????????#???????# ##????### # #??? | | ????????????????????????# #?????# ###??? | | ????????????????????#??## #?????# """ ##????? | | ??????????????????????## #??#??# """ #?????? | | ?????????????????????## #???#?## """ ##????? | | ????????????????????## ##???#??## #????? | | ?????????????#??????# ##???????## #????? | | ???????#????#??????## ##?#?????## #????? | | ??????????#????????# ##?????#?## ##????? | | ???????????????????# ##???#???# ##????? | | ???????????????????## ####??#?# ##???? | | ????????????????????## ##???# ## #???? | | ?????????????????????## #???## #?## # #???? | | ??????????????????????## #????###???# ####???? | | ?????????????????#?#??## [ #####???????# ##?????? | | ???????????#?????###### a@!#???#???????# #??????? | | ?# ??????????#??## aaa#????????#??# ######?? | | ?# ??####?#??## a #???????????# ## ##? | | ?## ## ###### a ##?????????## #? | | ???# aa ###?????### #? | | ????# % = #?#???### #? | | ???##%= % a #????## ## ##? | | ???# !a ##???## #### ###? | | ?# ##????## ##?##| #??? | | # ####### ##????#?## ##??# #??? | | ???????## ###????????####??## #??? | | ????????## #??#????????????## ##??? | | ?????????# ####???????????## ##?##? | | ??????????# %= ###????????## #????? | | ?????????#??## ## #?????????# #????? | | ????????????#?######## ##???#????# ##???? | | ?????????????????????#### ##?????????## #????? | | ???????????????????????#####???????????## ##????? | | ?????????????????#??????????????????????####?????? | | ??????????? ????#??????????????##??#?????????????? | | ?????????????????????????????????????????????????? | | ????????????????#?????????????????#???????#??#???? | | ??????????????????????????????????????????????#??? | | ?????????????????????????????????????????????????? | | ?????????????????????????????????????????????????? | +----------------------------------------------------+ Best States ------------- Heat Dissipation 25 Energy Generation 12 Energy Capacity 265 Matter Stores 300 Matter Capacity 300 Sight Range 16 Terrain Scan Range 16 Terrain Scan Density 10 Evasion (%) 40 Item Schematics ----------------- None Robot Schematics ------------------ None Fabricated ------------ Nothing Alien Tech Used ----------------- None Achievements -------------- None Challenges ------------ None Game ------ Seed FluxFluxFirepult Manual? 0 Play Time 00:07:47 Cumulative 190.7 hours Start 2020.09.28 @ 05:00:11 End 2020.09.28 @ 05:07:38 Sessions 1 Manual Loads 0 Difficulty Rogue Special Mode None Game No. 241 Rogue 241 Adventurer 0 Explorer 0 Win Type - Total 10 Types 2/3/0/1/1/3/0/0/0 Lore% 92 Gallery% 91 Achievement% 72 Wizard Run 0 Options --------- ASCII 0 Keyboard 0 Movement Numpad Keybinds 0 Fullscreen 1 Font 24/Smallcaps Map View 76x50 Tactical HUD 1 Map Filters NONE Filters NONE Steam 1 RUN: 0b648f16-3144-41e4-a9b8-439ec3c72553